bitfinex/quotes_ETHUSD_20240821
["timestamp","ask_amount","ask_price","bid_price","bid_amount"]
[1724247435062,3.89438,2567.8,2567.6,0.13655444]
[1724247435266,3.89434,2567.9,2567.6,0.13655444]
[1724247435560,3.89434,2567.9,2567.2,0.3898]
[1724247435761,0.823014,2567.8,2567.7,0.13648979]
[1724247435948,0.823014,2567.8,2567.2,0.3898]
[1724247436285,0.823014,2567.8,2566.5,0.3898]
[1724247436286,4.717434,2567.8,2566.5,0.3898]
[1724247436407,3.89605,2566.7,2566.5,0.3898]
[1724247436612,3.89637,2566.5,2565.7,3.89747]
[1724247436855,4.4364,2566.9,2565.5,7.79557]
[1724247436856,3.89661,2566.4,2565.5,7.79557]
[1724247437054,3.89692,2566.2,2565.5,3.89784]
[1724247437421,0.389605,2566.6,2564.9,3.89871]
[1724247437422,3.89653,2566.4,2564.9,3.89871]
[1724247437760,4.4364,2565.8,2565.1,3.89844]
[1724247437916,3.89766,2565.7,2564.9,3.89864]
[1724247438115,0.389653,2566.3,2565.1,3.89836]
[1724247438430,0.389653,2566.3,2564.7,5.1163]
[1724247438431,3.89705,2566.1,2565.4,3.89796]
[1724247438761,0.7794,2566.0,2565.5,3.89777]
[1724247438943,3.89699,2566.1,2565.3,3.89807]
[1724247439258,3.89695,2566.2,2565.4,3.89791]
[1724247439560,3.89646,2566.5,2565.6,7.79529]
[1724247439761,3.89661,2566.4,2565.6,3.89761]
[1724247439977,3.89741,2565.9,2565.2,3.89822]
[1724247440130,3.89726,2566.0,2565.2,3.89822]
[1724247440482,8.30771,2566.1,2565.4,3.89802]
[1724247440612,3.89658,2566.4,2565.7,3.89744]
[1724247440812,3.89658,2566.4,2565.6,7.79519]
[1724247441014,1.217194,2566.4,2565.6,3.89757]
[1724247441211,1.217194,2566.4,2565.2,0.3898]
[1724247441212,3.89596,2566.8,2566.0,3.89699]
[1724247441556,8.52355,2567.0,2566.1,0.55]
[1724247441856,3.89601,2566.8,2566.1,0.55]
[1724247442026,3.89585,2566.9,2566.2,3.89679]
[1724247442232,3.89456,2567.7,2566.1,0.9398]
[1724247442233,3.89534,2567.2,2566.1,0.9398]
[1724247442554,3.89568,2567.0,2566.1,4.83669]
[1724247442756,3.89602,2566.8,2565.9,3.89716]
[1724247443058,3.89616,2566.7,2565.9,3.89725]
[1724247443372,3.89582,2566.9,2566.1,3.89687]
[1724247443523,3.89582,2566.9,2566.2,3.89679]
[1724247443863,4.284874,2567.2,2566.3,4.2864]
[1724247444171,4.4199,2567.4,2566.3,4.41693499]
[1724247444374,3.896,2566.8,2566.3,0.13054499]
[1724247444533,3.89621,2566.6,2566.3,0.13054499]
[1724247444858,4.4199,2567.4,2566.0,0.55]
[1724247444859,4.4199,2567.4,2566.4,0.13034155]
[1724247445021,3.89605,2566.7,2566.1,3.89681]
[1724247445367,7.79166,2566.9,2566.2,0.52029516]
[1724247445568,3.896,2566.8,2566.2,0.52029516]
[1724247445718,3.89578,2566.9,2566.2,0.52029516]
[1724247446124,3.89578,2566.9,2566.2,4.41695516]
[1724247446462,4.674907,2566.9,2566.2,4.41695516]
[1724247446822,3.89551,2567.1,2566.3,3.89665]
[1724247447023,3.89551,2567.1,2566.4,3.89645]
[1724247447334,3.89575,2566.9,2566.4,0.13034155]
[1724247447532,3.89551,2567.1,2566.4,0.13034155]
[1724247447533,3.89555,2567.1,2566.4,0.13034155]
[1724247447733,3.89635,2566.5,2566.4,0.13034155]
[1724247447935,3.89635,2566.5,2565.8,3.89735]
[1724247448135,3.89633,2566.6,2565.8,3.89735]
[1724247448136,3.89652,2566.4,2565.8,3.89735]
[1724247448371,3.89652,2566.4,2565.6,3.8976]
[1724247448372,4.675805,2566.4,2565.6,3.8976]
[1724247448598,3.89692,2566.2,2565.4,3.89789]
[1724247448762,19.95,2566.3,2565.1,0.3898]
[1724247448945,19.95,2566.3,2566.1,3.89694]
[1724247449145,23.84592,2566.8,2566.1,3.89694]
[1724247449453,23.84592,2566.8,2566.0,0.3898]
[1724247449454,3.89622,2566.6,2566.0,0.3898]
[1724247449659,3.112592,2566.7,2566.1,3.89693]
[1724247450041,3.112592,2566.7,2566.3,3.89663]
[1724247450241,3.112592,2566.7,2565.7,3.89753]
[1724247450242,3.8966,2566.4,2565.7,3.89753]
[1724247450487,3.89624,2566.6,2565.9,3.89722]
[1724247450791,0.7008832,2566.5,2565.9,3.89722]
[1724247450998,0.7008832,2566.5,2565.7,3.89749]
[1724247450999,4.5973732,2566.5,2565.7,3.89749]
[1724247451203,3.89667,2566.3,2565.4,4.4829]
[1724247451351,23.84667,2566.3,2565.5,3.89778]
[1724247451545,0.842087,2566.2,2565.5,3.89778]
[1724247451878,19.95,2566.3,2565.7,3.89752]
[1724247452079,19.95,2566.3,2565.9,3.89725]
[1724247452391,19.95,2566.3,2566.1,3.89694]
[1724247452545,19.95,2566.8,2566.1,3.89685]
[1724247452741,19.95,2566.8,2566.2,3.89669]
[1724247453107,3.112567,2566.8,2566.2,3.89669]
[1724247453313,23.84567,2567.0,2566.1,4.5389]
[1724247453314,19.95,2567.0,2566.4,3.89636]
[1724247453605,3.89574,2567.0,2566.3,0.3898]
[1724247453743,3.8962,2566.6,2566.5,0.13093414]
[1724247453947,3.8962,2566.6,2566.4,0.12644425]
[1724247454201,3.89614,2566.7,2566.0,3.89699]
[1724247454364,3.8962,2566.6,2566.5,0.12619455]
[1724247454888,3.89646,2566.5,2565.9,0.3898]
[1724247455097,3.89691,2566.2,2565.7,0.3898]
[1724247455247,3.89657,2566.4,2565.7,3.89752]
[1724247455449,7.79255,2566.6,2565.6,0.3898]
[1724247455698,7.79255,2566.6,2565.8,3.89731]
[1724247455699,4.675665,2566.5,2565.8,3.89731]
[1724247455847,4.675665,2566.5,2565.8,7.79462]
[1724247456082,0.779255,2566.5,2565.8,3.89731]
[1724247456311,3.89623,2566.6,2565.8,3.89731]
[1724247456524,3.89645,2566.5,2565.9,0.3898]
[1724247456683,3.89623,2566.6,2565.9,0.3898]
[1724247456878,3.8966,2566.4,2565.6,3.89766]
[1724247457079,0.38966,2566.3,2565.6,3.89766]
[1724247457280,3.89717,2566.0,2565.5,0.3898]
[1724247457587,0.38966,2566.3,2565.6,3.89759]
[1724247457792,7.79256,2566.6,2565.9,3.89725]
[1724247457985,3.89638,2566.5,2565.8,7.7947]
[1724247458196,3.89609,2566.7,2566.0,3.897]
[1724247458403,3.89609,2566.7,2566.0,7.79401]
[1724247458736,3.89609,2566.7,2566.0,4.28679]
[1724247458737,3.89614,2566.7,2566.0,4.28679]
[1724247458879,0.779205,2566.6,2566.0,8.18382]
[1724247459087,0.779205,2566.6,2566.0,4.28679]
[1724247459285,8.571715,2566.6,2566.0,4.28679]
[1724247459485,3.89636,2566.5,2566.0,0.3898]
[1724247459746,4.675415,2566.6,2565.9,4.28706]
[1724247459927,0.779205,2566.6,2566.1,3.89694]
[1724247460147,3.89614,2566.7,2566.1,3.89694]
[1724247460670,3.89602,2566.8,2566.1,3.89683]
[1724247460870,7.79199,2566.8,2566.1,7.79371]
[1724247461071,7.79199,2566.8,2565.9,0.3898]
[1724247461072,3.89568,2567.0,2566.4,3.89638]
[1724247461364,3.89554,2567.1,2566.4,3.89638]
[1724247461568,0.661854,2567.0,2566.4,7.7928]
[1724247461863,3.8956,2567.0,2566.5,0.1262186]
[1724247462264,3.89575,2566.9,2566.5,0.1262186]
[1724247462619,3.89553,2567.1,2566.4,3.89648]
[1724247462917,3.89567,2567.0,2566.5,0.12612239]
[1724247463236,4.674777,2567.0,2566.5,0.12612239]
[1724247463747,0.779107,2567.0,2566.5,0.12612239]
[1724247464065,3.89552,2567.1,2566.5,4.02244239]
[1724247464429,3.8956,2567.0,2566.5,0.12612239]
[1724247465117,11.8782,2567.3,2566.6,3.8961]
[1724247467067,4.286062,2566.5,2565.9,4.28702]
[1724247467271,4.286062,2566.5,2565.6,4.6132]
[1724247467272,3.89674,2566.3,2565.6,4.6132]
[1724247467474,0.389642,2566.5,2565.6,0.3898]
[1724247467475,3.89698,2566.1,2565.6,0.3898]
[1724247467778,4.286678,2566.1,2565.6,0.3898]
[1724247467992,8.34608,2566.0,2564.9,3.89866]
[1724247468290,3.89785,2565.6,2564.8,0.3898]
[1724247468587,3.89785,2565.6,2564.7,3.899]
[1724247468588,7.79569,2565.6,2564.9,3.89867]
[1724247468729,3.89784,2565.6,2564.7,3.89898]
[1724247468929,3.89818,2565.3,2564.7,3.89898]
[1724247469731,3.89747,2565.8,2564.4,3.8995]
[1724247469957,3.89802,2565.5,2564.6,3.89912]
[1724247470174,3.89763,2565.7,2564.9,3.89874]
[1724247470340,3.89763,2565.7,2565.0,3.89862]
[1724247470341,0.389763,2565.6,2565.0,3.89862]
[1724247470543,0.389763,2565.6,2564.9,0.3898]
[1724247470744,0.389763,2565.6,2564.8,3.8989]
[1724247471002,0.389763,2565.6,2565.0,3.89854]
[1724247471281,3.89791,2565.5,2564.6,3.89918]
[1724247471430,4.659,2565.6,2564.9,3.89873]
[1724247471625,8.55672,2565.6,2564.9,3.89867]
[1724247471973,3.89831,2565.3,2564.5,3.89931]
[1724247472270,3.8983,2565.3,2564.5,3.89928]
[1724247472480,3.8986,2565.1,2564.3,3.89959]
[1724247472825,3.8986,2565.1,2564.4,3.89953]
[1724247473041,3.8986,2565.1,2564.3,3.89959]
[1724247473466,0.38983,2565.2,2564.5,3.89937]
[1724247473783,0.38983,2565.2,2564.6,3.89913]
[1724247474076,4.28817,2565.2,2564.6,3.89913]
[1724247474386,0.38983,2565.2,2564.7,0.12822167]
[1724247474528,8.62247,2565.3,2564.7,0.12822167]
[1724247474747,12.52078,2565.3,2564.7,0.12822167]
[1724247474950,8.62247,2565.3,2564.7,0.12822167]
[1724247475166,31.12795,2565.5,2564.7,0.12822167]
[1724247475167,31.12795,2565.5,2564.8,4.28864]
[1724247475389,31.12795,2565.5,2564.8,4.28863]
[1724247475703,27.23,2565.5,2565.0,4.28829]
[1724247476026,23.84735,2565.9,2565.2,3.89818]
[1724247476294,11.7235,2566.0,2565.2,3.89818]
[1724247476295,4.4435,2566.0,2565.2,3.89824]
[1724247476609,19.61,2566.3,2565.2,3.89824]
[1724247476610,3.89666,2566.3,2565.6,3.89763]
[1724247476745,3.89666,2566.3,2565.6,7.79526]
[1724247477092,3.89666,2566.3,2565.7,0.12828911]
[1724247477261,4.3168,2566.4,2565.7,0.12828911]
[1724247477446,4.286052,2566.5,2565.8,3.89728]
[1724247477764,0.4286052,2566.4,2565.9,0.12811738]
[1724247477960,3.89666,2566.3,2565.9,0.12811738]
[1724247478157,3.89666,2566.3,2565.7,4.28733]
[1724247478358,4.7103,2566.8,2566.0,4.02488215]
[1724247478583,4.7103,2566.8,2566.0,3.89698]
[1724247478918,3.89628,2566.6,2566.1,0.12781329]
[1724247479086,3.89553,2567.1,2566.1,0.12781329]
[1724247479289,3.89609,2566.7,2566.2,0.3898]
[1724247479590,3.89609,2566.7,2566.3,0.12738895]
[1724247479591,3.89636,2566.5,2566.3,0.12738895]
[1724247479901,3.89636,2566.5,2565.8,3.8974]
[1724247480222,5.141739,2566.5,2565.9,0.12769622]
[1724247480406,3.89674,2566.3,2565.9,0.12769622]
[1724247480725,3.89674,2566.3,2565.7,0.3898]
[1724247480935,5.141829,2566.5,2565.8,3.89731]
[1724247481089,3.89611,2566.7,2566.0,3.89696]
[1724247481291,8.57147,2566.7,2566.1,0.12754257]
[1724247481475,4.6753,2566.7,2566.1,0.12754257]
[1724247481818,0.77919,2566.7,2566.2,3.89672]
[1724247481972,7.79168,2566.9,2566.2,3.89672]
[1724247482174,3.89583,2566.9,2566.3,0.12738895]
[1724247482391,7.79172,2566.9,2566.3,0.12738895]
[1724247482590,4.3211,2567.1,2566.3,0.12738895]
[1724247482591,8.21662,2567.1,2566.5,3.89635]
[1724247482836,3.89569,2567.0,2566.3,4.02396895]
[1724247482998,3.89577,2566.9,2566.6,0.12715856]
[1724247483194,3.89577,2566.9,2566.4,3.89647]
[1724247483391,3.89552,2567.1,2566.7,0.12708177]
[1724247483639,3.89552,2567.1,2566.6,3.8962]
[1724247483787,3.8949,2567.5,2566.8,4.02280499]
[1724247483990,4.42582884,2567.5,2566.8,3.8958]
[1724247484190,4.42582884,2567.5,2566.9,0.12692822]
[1724247484434,0.61091384,2567.7,2566.9,0.12692822]
[1724247484435,3.8946,2567.7,2566.9,0.12692822]
[1724247484745,4.69749456,2568.1,2567.3,3.89507]
[1724247484907,5.96531184,2568.2,2567.3,3.89507]
[1724247484908,7.78861,2567.9,2567.3,3.89507]
[1724247485092,3.89493,2567.5,2567.4,0.12654444]
[1724247485293,3.89493,2567.5,2566.6,3.8961]
[1724247485503,3.89518,2567.3,2566.8,0.3898]
[1724247485734,3.89493,2567.5,2566.9,0.12692822]
[1724247486076,3.89515,2567.3,2566.9,0.12692822]
[1724247486245,3.89559,2567.0,2566.9,0.12692822]
[1724247486608,3.89616,2566.7,2566.0,8.44238]
[1724247486927,3.89616,2566.7,2566.1,4.41430257]
[1724247487130,3.89584,2566.9,2566.2,0.3898]
[1724247487131,3.89583,2566.9,2566.2,0.3898]
[1724247487355,3.89592,2566.8,2566.2,0.3898]
[1724247487495,0.80347456,2567.3,2566.7,3.89604]
[1724247487697,3.89525,2567.3,2566.7,3.89604]
[1724247488024,0.389493,2567.4,2566.8,0.12552531]
[1724247488025,3.89576,2566.9,2566.8,0.12552531]
[1724247488338,3.8957,2567.0,2566.4,4.28629]
[1724247488709,7.79079,2567.2,2566.4,4.28622]
[1724247488909,4.79374576,2567.2,2566.5,0.12575566]
[1724247489121,4.284553,2567.4,2566.6,3.89618]
[1724247489415,9.57919184,2567.6,2566.9,3.89566]
[1724247489416,1.20521184,2567.6,2566.9,3.89566]
[1724247489620,1.20521184,2567.7,2567.0,0.55]
[1724247489838,3.89485,2567.5,2567.0,0.51521385]
[1724247490034,3.8946,2567.7,2567.0,0.51521385]
[1724247490264,4.36440746,2567.7,2567.0,4.41067385]
[1724247490414,4.69778456,2567.9,2567.2,3.89527]
[1724247490810,7.7892,2567.7,2567.3,0.12490706]
[1724247491078,3.89455,2567.7,2567.3,0.12490706]
[1724247491215,3.89455,2567.7,2567.0,4.28526]
[1724247491416,3.89427,2567.9,2567.0,4.28526]
[1724247491417,3.89427,2567.9,2567.4,0.12483032]
[1724247491618,3.89427,2567.9,2567.2,3.89528]
[1724247493113,8.23233,2568.0,2567.1,4.32396]
[1724247493313,3.89439,2567.8,2567.1,4.32386]
[1724247493591,3.89485,2567.5,2567.1,0.42853]
[1724247493713,7.78926,2567.7,2567.1,0.42853]
[1724247493913,3.89458,2567.7,2567.2,0.12482155]
[1724247494569,7.78864,2567.9,2567.2,0.6086797]
[1724247494714,3.8944,2567.8,2567.2,0.6086797]
[1724247495083,3.89455,2567.7,2567.2,4.37910815]
[1724247495410,3.8943,2567.9,2567.3,0.12473278]
[1724247495612,3.8943,2567.9,2567.3,4.85977187]
[1724247495816,7.78863,2567.9,2567.3,4.85977187]
[1724247496076,3.89456,2567.7,2567.3,0.96465187]
[1724247496272,7.78868,2567.9,2567.3,0.12473278]
[1724247496556,3.8944,2567.8,2567.2,4.37913815]
[1724247496961,3.8943,2567.9,2567.2,0.48385815]
[1724247496962,3.89454,2567.7,2567.2,0.48385815]
[1724247497396,3.89454,2567.7,2567.3,0.12468471]
[1724247497668,3.89454,2567.7,2567.2,0.48385815]
[1724247497866,3.89454,2567.7,2567.0,0.3898]
[1724247498167,3.89546,2567.1,2566.6,3.89609]
[1724247498352,3.8956,2567.0,2566.5,0.3898]
[1724247498520,3.89607,2566.7,2566.1,4.3225]
[1724247498720,4.6493,2566.9,2566.1,4.32913]
[1724247499065,3.89563,2567.0,2566.4,3.8965]
[1724247499365,3.89555,2567.1,2566.4,7.79286]
[1724247499517,7.6493,2567.3,2566.1,0.43225]
[1724247499518,3.0,2567.3,2566.5,8.4022]
[1724247499718,3.89568,2567.0,2566.4,3.8965]
[1724247499927,3.89583,2566.9,2566.3,4.28635]
[1724247500319,3.89575,2566.9,2566.4,3.89638]
[1724247500519,3.89575,2566.9,2566.3,4.28635]
[1724247500943,3.89575,2566.9,2566.3,0.3898]
[1724247501152,3.89606,2566.7,2566.3,0.3898]
[1724247501772,3.8963,2566.6,2566.3,0.3898]
[1724247502082,3.89638,2566.5,2565.7,8.64193]
[1724247502284,0.389575,2566.9,2565.7,4.7444]
[1724247502486,3.89727,2565.9,2565.4,4.3546]
[1724247503047,3.89809,2565.4,2564.8,3.89889]
[1724247503374,3.89809,2565.4,2564.7,4.5421]
[1724247503592,3.89842,2565.2,2564.7,4.5421]
[1724247503722,3.89809,2565.4,2564.7,8.44108]
[1724247503924,3.89824,2565.3,2564.7,4.9319]
[1724247504238,3.89809,2565.4,2564.7,4.9319]
[1724247504438,3.89809,2565.4,2564.7,8.83097]
[1724247504634,3.89833,2565.2,2564.7,4.9319]
[1724247504835,8.47817,2565.8,2564.7,6.20495]
[1724247504836,3.89778,2565.6,2564.7,6.20495]
[1724247505059,3.89778,2565.6,2564.9,3.89865]
[1724247505299,3.89692,2566.2,2565.4,3.89791]
[1724247505442,4.351,2566.3,2565.7,0.3898]
[1724247505645,8.24771,2566.3,2565.7,0.3898]
[1724247505871,3.8969,2566.2,2565.8,0.12614318]
[1724247506081,3.89636,2566.5,2565.8,0.12614318]
[1724247506386,3.89636,2566.5,2565.7,0.3898]
[1724247506387,3.8966,2566.4,2565.7,0.3898]
[1724247508597,23.84712,2566.0,2565.5,0.3898]
[1724247508905,23.84712,2566.0,2565.3,0.12652744]
[1724247508906,2.846532,2565.9,2565.3,0.12652744]
[1724247509041,23.84712,2566.0,2565.6,0.12771601]
[1724247509238,23.84712,2566.0,2565.2,4.288]
[1724247509490,19.95,2566.0,2565.4,0.3898]
[1724247509692,19.95,2566.0,2565.5,4.28753]
[1724247509893,19.95,2566.0,2565.6,3.89763]
[1724247510048,19.95,2566.0,2565.6,4.02538211]
[1724247510697,19.95,2566.0,2565.6,0.12775211]
[1724247510864,23.84713,2566.0,2565.6,0.12775211]
[1724247511089,19.95,2566.0,2565.6,0.12775211]
[1724247511296,19.95,2566.0,2565.6,4.28742]
[1724247511600,5.64314052,2566.8,2565.6,4.28742]
[1724247511601,19.95,2566.7,2565.7,4.75057526]
[1724247511805,3.89573,2567.0,2566.4,3.89642]
[1724247512134,3.89573,2567.0,2566.2,8.1832]
[1724247512135,7.79146,2567.0,2566.2,8.1832]
[1724247512395,3.89573,2567.0,2566.4,3.8965]
[1724247512704,4.6382,2567.3,2566.6,3.89606]
[1724247512863,10.82943778,2567.3,2566.6,3.89606]
[1724247513043,6.93420778,2567.3,2566.7,4.0226644]
[1724247513399,27.74025,2567.4,2566.8,3.89582]
[1724247513400,23.84512,2567.4,2566.8,3.89582]
[1724247513700,8.25755,2567.6,2566.8,3.89582]
[1724247513853,8.25755,2567.6,2566.9,4.02196847]
[1724247514049,12.15233,2567.6,2566.9,4.02196847]
[1724247514291,3.8954,2567.2,2566.9,0.12630847]
[1724247514472,3.89522,2567.3,2566.9,0.12630847]
[1724247514650,3.89522,2567.3,2566.6,8.18196]
[1724247514851,3.89531,2567.2,2566.6,3.89607]
[1724247515089,3.89531,2567.2,2566.4,3.89643]
[1724247515090,3.89556,2567.1,2566.7,0.12625158]
[1724247515289,4.284841,2567.2,2566.7,0.12625158]
[1724247515554,4.284841,2567.2,2566.8,0.12615075]
[1724247515755,3.89531,2567.2,2566.8,0.12615075]
[1724247515999,3.89531,2567.2,2566.6,3.89608]
[1724247516182,3.89531,2567.2,2566.9,0.12602589]
[1724247516414,3.89531,2567.2,2566.6,4.28588]
[1724247516936,3.89508,2567.4,2566.8,3.89588]
[1724247517149,8.25752,2567.6,2566.9,4.02174589]
[1724247517289,3.89456,2567.7,2567.1,3.89535]
[1724247517672,3.89456,2567.7,2567.0,0.3898]
[1724247517673,0.778901,2567.6,2567.2,0.12587375]
[1724247517944,3.89456,2567.7,2567.1,3.89542]
[1724247518083,31.12431,2567.9,2567.1,4.28522]
[1724247518084,3.89446,2567.8,2567.1,4.28522]
[1724247518284,3.89446,2567.8,2567.2,0.12574151]
[1724247518532,3.89446,2567.8,2567.2,4.02102151]
[1724247518836,3.89446,2567.8,2567.2,4.85163966]
[1724247519585,23.84386,2568.2,2567.5,3.89482]
[1724247519788,23.84386,2568.2,2567.5,3.89483]
[1724247519789,3.89386,2568.2,2567.5,3.89483]
[1724247520028,0.61077926,2568.3,2567.3,3.89503]
[1724247520029,3.89415,2568.0,2567.4,0.3898]
[1724247520209,3.89428,2567.9,2567.4,0.3898]
[1724247520415,3.89428,2567.9,2567.6,0.3898]
[1724247520860,3.89428,2567.9,2567.7,0.12419145]
[1724247521006,3.89438,2567.8,2567.7,0.12419145]
[1724247521337,3.89438,2567.8,2567.3,3.89513]
[1724247521338,0.778866,2567.8,2567.3,3.89513]
[1724247521535,3.89428,2567.9,2567.2,4.44526]
[1724247521682,3.89447,2567.8,2567.3,0.12453445]
[1724247521886,3.89428,2567.9,2567.2,4.44526]
[1724247522085,3.89428,2567.9,2567.3,4.40670419]
[1724247522434,3.89412,2568.0,2567.4,4.28476]
[1724247522733,3.89412,2568.0,2567.5,4.01639071]
[1724247522734,3.8941,2568.0,2567.5,4.01639071]
[1724247523034,3.89439,2567.8,2567.5,0.12165071]
[1724247523401,3.89468,2567.6,2567.5,0.12165071]
[1724247523699,3.89468,2567.6,2566.9,8.45165]
[1724247523951,11.68419,2567.6,2566.6,0.428588]
[1724247524220,3.89527,2567.3,2566.7,0.12212659]
[1724247524417,3.89485,2567.5,2566.7,0.12212659]
[1724247524734,3.89531,2567.2,2566.7,0.3898]
[1724247524936,3.89531,2567.2,2566.8,0.12213993]
[1724247525089,3.89531,2567.2,2566.7,0.3898]
[1724247525282,12.50673,2567.6,2566.8,0.12213993]
[1724247525535,3.89475,2567.6,2567.0,3.89551]
[1724247525825,3.89475,2567.6,2567.1,0.12217404]
[1724247526244,3.8947,2567.6,2567.1,0.12217404]
[1724247526432,3.89509,2567.4,2567.1,0.12217404]
[1724247526644,3.89509,2567.4,2566.9,0.3898]
[1724247526790,3.89509,2567.4,2567.2,0.12207926]
[1724247526990,7.7902,2567.4,2566.9,0.3898]
[1724247527220,3.89509,2567.4,2567.3,0.12200251]
[1724247527396,0.38947,2567.5,2567.0,3.89557]
[1724247527611,3.89477,2567.6,2567.3,0.12200251]
[1724247527811,3.89528,2567.3,2566.9,0.3898]
[1724247528021,3.89555,2567.1,2566.4,4.7065]
[1724247528238,4.3224,2567.4,2566.4,8.6029]
[1724247528239,3.8954,2567.2,2566.4,8.6029]
[1724247528459,3.89567,2567.0,2566.4,4.7065]
[1724247528655,3.89537,2567.2,2566.6,3.89611]
[1724247528955,3.89537,2567.2,2566.7,3.89601]
[1724247529552,19.95,2567.5,2566.5,0.3898]
[1724247529756,3.89499,2567.4,2566.9,3.89566]
[1724247529913,3.89536,2567.2,2566.8,0.3898]
[1724247530266,2.773976,2567.4,2566.3,3.89654]
[1724247530267,3.89574,2566.9,2566.3,3.89654]
[1724247530775,3.89574,2566.9,2566.3,0.3898]
[1724247531055,19.95,2566.8,2566.0,0.81350983]
[1724247531221,3.8969,2566.2,2566.0,0.81350983]
[1724247531426,3.89668,2566.3,2566.0,0.81350983]
[1724247531827,3.89651,2566.4,2566.0,0.81350983]
[1724247532041,23.8463,2566.6,2566.0,0.81350983]
[1724247532205,4.5387,2567.1,2566.0,5.40150983]
[1724247532407,24.4887,2567.1,2566.0,9.29859983]
[1724247532614,3.89592,2566.8,2566.0,9.29859983]
[1724247532925,3.89592,2566.8,2566.1,0.3898]
[1724247533125,3.89592,2566.8,2566.0,9.29849983]
[1724247533126,3.89638,2566.5,2566.0,5.40150983]
[1724247533326,3.8959,2566.8,2566.0,4.71051983]
[1724247533525,23.84584,2566.9,2566.1,3.89686]
[1724247533855,19.95,2566.9,2566.3,4.6751]
[1724247534083,19.95,2566.9,2566.5,3.89627]
[1724247534244,19.95,2566.9,2566.5,3.89635]
[1724247534417,19.95,2566.9,2566.5,5.143152]
[1724247534613,19.95,2566.9,2566.5,5.143062]
[1724247535077,19.95,2566.9,2566.7,3.89604]
[1724247535256,8.25454,2567.5,2566.7,3.89604]
[1724247535573,3.8954,2567.2,2566.5,5.143042]
[1724247535723,3.8954,2567.2,2566.6,4.9604642]
[1724247535932,3.8954,2567.2,2566.7,0.1225351]
[1724247536176,3.89539,2567.2,2566.7,0.1225351]
[1724247536468,3.89514,2567.3,2566.7,0.1225351]
[1724247536469,3.89546,2567.1,2566.7,0.1225351]
[1724247536669,3.89514,2567.3,2566.7,0.1225351]
[1724247536877,1.214968,2567.3,2566.6,0.3898]
[1724247537077,1.214968,2567.3,2565.4,0.7]
[1724247537078,3.89617,2566.7,2565.9,8.23616]
[1724247537264,3.89614,2566.7,2566.1,4.28674]
[1724247537741,8.61453,2566.9,2566.2,4.01158129]
[1724247537742,3.89583,2566.9,2566.2,4.01158129]
[1724247537970,3.89607,2566.7,2566.2,0.11479129]
[1724247538268,3.89599,2566.8,2566.2,4.01155129]
[1724247538671,3.89583,2566.9,2566.3,3.89663]
[1724247538875,3.89576,2566.9,2566.3,3.89656]
[1724247539077,7.79165,2566.9,2566.4,0.11464369]
[1724247539372,19.95,2567.1,2566.5,3.89624]
[1724247539373,27.7411,2567.1,2566.5,3.89624]
[1724247539574,3.8956,2567.0,2566.4,4.40084369]
[1724247539744,3.8956,2567.0,2566.6,0.11471256]
[1724247539941,4.7187,2567.2,2566.4,0.3898]
[1724247539942,7.79163,2566.9,2566.4,0.3898]
[1724247540170,3.89555,2567.1,2566.4,4.2863]
[1724247540472,3.89555,2567.1,2566.4,4.80614827]
[1724247540692,3.89555,2567.1,2566.4,4.80605827]
[1724247540974,3.89555,2567.1,2566.6,3.89612]
[1724247540975,3.89553,2567.1,2566.6,3.89612]
[1724247541177,7.79106,2567.1,2566.6,3.89612]
[1724247541380,3.89553,2567.1,2566.7,0.11454558]
[1724247541736,3.89523,2567.3,2566.7,1.04653214]
[1724247541941,12.49587456,2567.6,2567.0,3.89551]
[1724247541942,3.89469,2567.6,2567.0,3.89551]
[1724247542136,3.89499,2567.4,2567.1,0.11417236]
[1724247542451,3.89499,2567.4,2566.9,0.3898]
[1724247542452,3.89529,2567.2,2566.9,0.3898]
[1724247542784,6.13118448,2567.8,2566.9,4.28546]
[1724247542785,3.89492,2567.5,2566.9,4.28546]
[1724247543080,3.89476,2567.6,2566.5,9.20554]
[1724247543081,3.8947,2567.6,2567.0,4.00964884]
[1724247543261,3.8947,2567.6,2567.0,4.00968884]
[1724247543262,3.89476,2567.6,2567.0,4.00968884]
[1724247543465,0.88208226,2567.6,2567.0,0.11409884]
[1724247543633,3.89476,2567.6,2567.0,4.00963884]
[1724247543830,3.8946,2567.7,2567.0,0.11409884]
[1724247544096,3.8946,2567.7,2567.1,3.89535]
[1724247544297,1.03152264,2567.8,2567.3,3.89509]
[1724247544298,3.8944,2567.8,2567.3,3.89509]
[1724247544582,3.8944,2567.8,2567.4,0.11373773]
[1724247544889,3.89434,2567.9,2567.4,4.00868773]
[1724247545039,3.894,2568.1,2567.4,4.8930425]
[1724247545040,3.89409,2568.0,2567.4,4.8930425]
[1724247545383,3.894,2568.1,2567.5,4.3175]
[1724247545586,3.89378,2568.2,2567.6,3.89463]
[1724247545729,3.89378,2568.2,2567.6,4.00821426]
[1724247545936,9.42608184,2568.7,2567.6,4.00821426]
[1724247545937,4.69658456,2568.7,2567.6,4.00819426]
[1724247546236,3.89341,2568.5,2568.0,0.3898]
[1724247546442,5.39097456,2568.9,2568.0,0.3898]
[1724247546443,3.8932,2568.6,2568.0,0.3898]
[1724247546678,3.89308,2568.7,2568.1,4.0066481]
[1724247546890,9.28375456,2568.9,2568.1,5.70074791]
[1724247547039,3.89302,2568.7,2568.1,9.59461791]
[1724247547631,3.89302,2568.7,2568.1,5.70074791]
[1724247547778,7.78615,2568.7,2568.1,4.8716981]
[1724247548106,3.89302,2568.7,2568.1,4.8716981]
[1724247548482,7.78618,2568.7,2568.1,4.8716981]
[1724247548691,7.78615,2568.7,2568.1,4.8716981]